[Event "Chinese Championship-B Women 2024"]
[Site "Liaocheng"]
[Date "2024.04.24"]
[Round "8.11"]
[White "Liu, Youyin"]
[Black "Pi, Aiying"]
[Result "0-1"]
[WhiteElo "1840"]
[BlackElo "1617"]
[PlyCount "140"]
[EventDate "2024.04.24"]
[EventType "swiss"]
[EventCountry "CHN"]
[TimeControl "5400+30"]

1. e4 {[%emt 0:00:03]} c5 {[%emt 0:00:15]} 2. Nf3 {[%emt 0:00:11]} e6 {[%emt 0:00:06]} 3. d4 {[%emt 0:00:07]} cxd4 {[%emt 0:00:05]} 4. Nxd4 {[%emt 0:00:07]} a6 {[%emt 0:00:02]} 5. Nc3 {[%emt 0:01:10]} Qc7 {[%emt 0:00:22]} 6. g3 {[%emt 0:04:13]} b5 {[%emt 0:00:34]} 7. a3 {[%emt 0:04:03]} Bb7 {[%emt 0:00:43]} 8. Bg2 {[%emt 0:00:16]} d6 {[%emt 0:01:13]} 9. O-O {[%emt 0:00:30]} Nf6 {[%emt 0:01:12]} 10. Be3 {[%emt 0:02:35]} Be7 {[%emt 0:00:22]} 11. f4 {[%emt 0:07:05]} Nbd7 {[%emt 0:02:41]} 12. Bf2 {[%emt 0:05:46]} O-O {[%emt 0:03:19]} 13. Re1 {[%emt 0:08:58]} Nb6 {[%emt 1:26:06]} 14. f5 {[%emt 0:16:18]} e5 {[%emt 0:00:00]} 15. Nb3 {[%emt 0:01:44]} Nc4 {[%emt 0:00:00]} 16. Ra2 {[%emt 0:01:08]} Nxb2 {[%emt 0:00:00]} 17. Nxb5 {[%emt 0:00:51]} axb5 {[%emt 0:00:00]} 18. Rxb2 {[%emt 0:00:08]} Rxa3 {[%emt 0:02:30]} 19. Nc1 {[%emt 0:05:46]} Ra4 {[%emt 0:00:30]} 20. Qd3 {[%emt 0:05:53]} Qc4 {[%emt 0:00:30]} 21. Rxb5 {[%emt 0:13:59]} Bxe4 {[%emt 0:00:00]} 22. Bxe4 {[%emt 0:00:18]} Nxe4 {[%emt 0:00:00]} 23. Rb7 {[%emt 0:05:07]} Bg5 {[%emt 0:00:00]} 24. Nb3 {[%emt 0:01:55]} Nxf2 25. Kxf2 Qc6 {[%emt 0:00:00]} 26. Rb5 {[%emt 0:02:49]} e4 {[%emt 0:00:00]} 27. Qe2 {[%emt 0:01:03]} Rc4 {[%emt 0:00:00]} 28. Na5 {[%emt 0:08:08]} Qxb5 {[%emt 0:00:00]} 29. Nxc4 {[%emt 0:00:21]} Qxf5+ {[%emt 0:00:00]} 30. Kg1 {[%emt 0:01:36]} Qc5+ {[%emt 0:00:00]} 31. Kg2 {[%emt 0:00:14]} d5 {[%emt 0:00:00]} 32. h4 {[%emt 0:01:44]} Bf6 {[%emt 0:00:00]} 33. Ne3 {[%emt 0:00:44]} Rc8 {[%emt 0:00:00]} 34. Kh3 {[%emt 0:00:52]} Re8 {[%emt 0:00:00]} 35. Ng4 {[%emt 0:02:18]} Bd8 {[%emt 0:00:00]} 36. Rb1 {[%emt 0:00:00]} Bc7 {[%emt 0:00:00]} 37. h5 {[%emt 0:01:00]} h6 {[%emt 0:00:00]} 38. Kg2 {[%emt 0:00:00]} Rb8 {[%emt 0:00:00]} 39. Rxb8+ {[%emt 0:00:00]} Bxb8 {[%emt 0:00:00]} 40. Nf2 {[%emt 0:00:22]} Ba7 {[%emt 0:00:00]} 41. Nxe4 {[%emt 0:01:00]} dxe4 {[%emt 0:00:00]} 42. Qxe4 {[%emt 0:00:06]} Qg1+ {[%emt 0:00:00]} 43. Kh3 {[%emt 0:00:11]} Qf1+ {[%emt 0:00:00]} 44. Kg4 {[%emt 0:00:11]} f5+ {[%emt 0:00:00]} 45. Qxf5 {[%emt 0:00:05]} Qxf5+ {[%emt 0:00:00]} 46. Kxf5 {[%emt 0:00:05]} Kf7 {[%emt 0:00:00]} 47. g4 {[%emt 0:00:21]} Bd4 {[%emt 0:00:00]} 48. g5 {[%emt 0:01:19]} hxg5 {[%emt 0:00:00]} 49. Kxg5 {[%emt 0:00:05]} Be3+ {[%emt 0:00:00]} 50. Kf5 {[%emt 0:00:14]} Ke7 {[%emt 0:00:00]} 51. Ke5 {[%emt 0:00:52]} Kd7 {[%emt 0:00:00]} 52. Kd5 {[%emt 0:00:07]} Bf4 {[%emt 0:00:00]} 53. Ke4 {[%emt 0:00:08]} Bd2 {[%emt 0:00:00]} 54. Kd5 {[%emt 0:00:06]} Bc3 {[%emt 0:00:00]} 55. h6 {[%emt 0:02:14]} g6 {[%emt 0:02:45]} 56. Kc4 {[%emt 0:00:22]} Bf6 {[%emt 0:01:17]} 57. Kd5 {[%emt 0:00:23]} Ke7 {[%emt 0:01:59]} 58. c4 {[%emt 0:00:29]} Kf7 {[%emt 0:00:25]} 59. c5 {[%emt 0:01:30]} Kg8 {[%emt 0:00:45]} 60. c6 {[%emt 0:00:36]} Bd8 {[%emt 0:00:03]} 61. Ke6 {[%emt 0:00:41]} Kh7 {[%emt 0:00:43]} 62. Kd7 {[%emt 0:00:13]} Ba5 {[%emt 0:00:06]} 63. c7 {[%emt 0:00:20]} Bxc7 {[%emt 0:00:02]} 64. Kxc7 {[%emt 0:00:05]} Kxh6 {[%emt 0:00:01]} 65. Kd6 {[%emt 0:00:15]} Kg5 {[%emt 0:00:25]} 66. Ke5 {[%emt 0:00:28]} Kg4 {[%emt 0:00:12]} 67. Ke4 {[%emt 0:00:20]} g5 {[%emt 0:00:01]} 68. Ke3 {[%emt 0:00:10]} Kg3 {[%emt 0:00:02]} 69. Ke2 {[%emt 0:00:13]} g4 {[%emt 0:00:11]} 70. Kf1 {[%emt 0:00:14]} Kh2 {[%emt 0:00:03]} 0-1

[Event "Chinese Championship-B Women 2024"]
[Site "Liaocheng"]
[Date "2024.04.24"]
[Round "8.12"]
[White "Wu, Shuang(Hlj)"]
[Black "Cui, Wen"]
[Result "1-0"]
[WhiteElo "1701"]
[BlackElo "1825"]
[PlyCount "81"]
[EventDate "2024.04.24"]
[EventType "swiss"]
[EventCountry "CHN"]
[TimeControl "5400+30"]

1. d4 {[%emt 0:00:03]} Nf6 {[%emt 0:02:42]} 2. Nf3 {[%emt 0:00:07]} e6 {[%emt 0:00:07]} 3. e3 {[%emt 0:00:06]} d5 {[%emt 0:00:19]} 4. Bd3 {[%emt 0:00:05]} Bd6 {[%emt 0:00:30]} 5. O-O {[%emt 0:00:08]} O-O {[%emt 0:00:15]} 6. Nbd2 {[%emt 0:00:03]} Nbd7 {[%emt 0:00:32]} 7. b3 {[%emt 0:01:03]} b6 {[%emt 0:00:37]} 8. Bb2 {[%emt 0:00:18]} Bb7 {[%emt 0:00:43]} 9. c4 {[%emt 0:01:44]} c5 {[%emt 0:00:47]} 10. Rc1 {[%emt 0:02:02]} Re8 {[%emt 0:05:45]} 11. Ne5 {[%emt 0:01:25]} Ne4 {[%emt 0:02:50]} 12. Bb1 {[%emt 0:06:31]} f6 {[%emt 0:06:25]} 13. Nxd7 {[%emt 0:04:35]} Qxd7 {[%emt 0:00:17]} 14. cxd5 {[%emt 0:00:49]} exd5 {[%emt 0:00:33]} 15. Nxe4 {[%emt 0:00:09]} dxe4 {[%emt 0:00:14]} 16. dxc5 {[%emt 0:00:22]} bxc5 {[%emt 0:00:09]} 17. Rxc5 {[%emt 0:07:40]} Red8 {[%emt 0:06:55]} 18. Rc1 Qf5 {[%emt 0:16:57]} 19. Qe2 {[%emt 0:03:28]} a5 {[%emt 0:53:23]} 20. Rfe1 {[%emt 1:09:52]} Ba6 {[%emt 0:00:30]} 21. Qf3 {[%emt 0:00:00]} Qxf3 {[%emt 0:00:00]} 22. gxf3 {[%emt 0:00:00]} exf3 {[%emt 0:00:00]} 23. Be4 {[%emt 0:00:00]} Rab8 {[%emt 0:01:30]} 24. Bxf3 {[%emt 0:00:00]} Rb5 {[%emt 0:00:00]} 25. h4 {[%emt 0:00:00]} Bb7 {[%emt 0:00:00]} 26. Be2 {[%emt 0:00:00]} Rf5 {[%emt 0:00:00]} 27. Bg4 {[%emt 0:03:30]} Bh2+ {[%emt 0:00:00]} 28. Kf1 {[%emt 0:00:00]} Ba6+ {[%emt 0:00:00]} 29. Kg2 {[%emt 0:00:00]} Bb7+ {[%emt 0:00:00]} 30. e4 {[%emt 0:00:00]} Rf4 {[%emt 0:00:00]} 31. Be6+ {[%emt 0:00:00]} Kf8 {[%emt 0:00:00]} 32. Ba3+ {[%emt 0:00:00]} Ke8 {[%emt 0:00:00]} 33. Kxh2 {[%emt 0:00:00]} Rxf2+ {[%emt 0:00:00]} 34. Kg3 {[%emt 0:00:00]} Rxa2 {[%emt 0:00:00]} 35. Bc5 {[%emt 0:00:00]} Rd3+ {[%emt 0:00:00]} 36. Re3 {[%emt 0:00:00]} Rdd2 {[%emt 0:00:00]} 37. Bh3 {[%emt 0:00:00]} a4 {[%emt 0:00:00]} 38. e5 {[%emt 0:00:00]} f5 {[%emt 0:00:00]} 39. Bf1 {[%emt 0:06:00]} Rf2 {[%emt 0:08:00]} 40. e6 {[%emt 0:00:00]} Bc6 {[%emt 0:00:00]} 41. Bd6 {[%emt 0:00:00]} 1-0

[Event "Chinese Championship-B Women 2024"]
[Site "Liaocheng"]
[Date "2024.04.24"]
[Round "8.13"]
[White "Zhou, Lanqier"]
[Black "Mu, Wangxueyao"]
[Result "1-0"]
[WhiteElo "1654"]
[BlackElo "1738"]
[PlyCount "70"]
[EventDate "2024.04.24"]
[EventType "swiss"]
[EventCountry "CHN"]
[TimeControl "5400+30"]

1. d4 {[%emt 0:00:01]} d5 {[%emt 0:00:56]} 2. c4 {[%emt 0:00:04]} e6 {[%emt 0:00:04]} 3. Nf3 {[%emt 0:00:05]} c5 {[%emt 0:00:05]} 4. cxd5 {[%emt 0:01:26]} exd5 {[%emt 0:00:04]} 5. Nc3 {[%emt 0:01:33]} Nc6 {[%emt 0:00:08]} 6. e3 {[%emt 0:04:17]} Nf6 {[%emt 0:00:09]} 7. Be2 {[%emt 0:04:05]} c4 {[%emt 0:12:34]} 8. O-O {[%emt 0:04:27]} Bb4 {[%emt 0:02:39]} 9. Qc2 {[%emt 0:04:58]} O-O {[%emt 0:01:41]} 10. Nd2 {[%emt 0:05:25]} g6 {[%emt 0:02:55]} 11. Nf3 {[%emt 0:09:38]} Bf5 12. Qd1 {[%emt 0:00:57]} Bxc3 {[%emt 0:22:54]} 13. bxc3 {[%emt 0:00:04]} Ne4 {[%emt 0:00:28]} 14. Bb2 {[%emt 0:03:50]} b5 {[%emt 0:52:53]} 15. Nd2 {[%emt 0:57:10]} Nxc3 {[%emt 0:00:00]} 16. Bxc3 {[%emt 0:00:00]} b4 {[%emt 0:00:00]} 17. Bb2 {[%emt 0:00:00]} c3 {[%emt 0:00:00]} 18. Bc1 {[%emt 0:00:00]} cxd2 {[%emt 0:00:00]} 19. Bxd2 {[%emt 0:00:00]} a5 {[%emt 0:00:00]} 20. Qa4 {[%emt 0:00:00]} Bd7 {[%emt 0:00:00]} 21. Bb5 {[%emt 0:00:00]} Nb8 {[%emt 0:00:00]} 22. a3 {[%emt 0:03:30]} bxa3 {[%emt 0:00:00]} 23. Rxa3 {[%emt 0:00:00]} Bf5 {[%emt 0:00:00]} 24. Bxa5 {[%emt 0:00:00]} Qg5 25. Rc1 {[%emt 0:00:00]} Be4 26. Bf1 {[%emt 0:02:00]} h5 {[%emt 0:00:00]} 27. Qd1 {[%emt 0:00:00]} Nd7 {[%emt 0:01:44]} 28. Bb4 {[%emt 0:00:00]} Rxa3 {[%emt 0:00:36]} 29. Bxa3 {[%emt 0:00:00]} Ra8 30. Bd6 {[%emt 0:00:00]} Qf6 31. Bc7 {[%emt 0:02:30]} Ra2 {[%emt 0:06:10]} 32. f3 {[%emt 0:00:30]} Bf5 {[%emt 0:00:00]} 33. Qb3 {[%emt 0:00:00]} Qe6 {[%emt 0:01:00]} 34. Bf4 {[%emt 0:00:00]} Ra8 {[%emt 0:00:00]} 35. Qb5 {[%emt 0:00:00]} f6 {[%emt 0:00:28]} 1-0

[Event "Chinese Championship-B Women 2024"]
[Site "Liaocheng"]
[Date "2024.04.24"]
[Round "8.14"]
[White "Guo, Weibao"]
[Black "Tong, Yiyi"]
[Result "1-0"]
[WhiteElo "1954"]
[BlackElo "1591"]
[PlyCount "51"]
[EventDate "2024.04.24"]
[EventType "swiss"]
[EventCountry "CHN"]
[TimeControl "5400+30"]

1. d4 {[%emt 0:00:03]} Nf6 {[%emt 0:00:05]} 2. Nf3 {[%emt 0:00:25]} d5 {[%emt 0:00:07]} 3. g3 {[%emt 0:00:36]} e6 {[%emt 0:02:37]} 4. Bg2 {[%emt 0:00:13]} c5 {[%emt 0:00:15]} 5. O-O {[%emt 0:01:27]} Nc6 {[%emt 0:00:17]} 6. b3 {[%emt 0:00:42]} Bd6 {[%emt 0:01:36]} 7. Bb2 {[%emt 0:00:42]} O-O {[%emt 0:01:19]} 8. e3 {[%emt 0:02:07]} Qe7 {[%emt 0:01:24]} 9. c4 {[%emt 0:04:49]} cxd4 {[%emt 0:05:18]} 10. exd4 {[%emt 0:00:44]} b6 {[%emt 0:03:18]} 11. Nc3 {[%emt 0:03:03]} Ba6 {[%emt 0:10:54]} 12. Re1 {[%emt 0:16:33]} Qc7 {[%emt 0:05:34]} 13. Ne5 {[%emt 0:06:24]} Rad8 {[%emt 0:10:22]} 14. cxd5 {[%emt 0:12:33]} exd5 {[%emt 0:00:16]} 15. Rc1 {[%emt 0:04:06]} Bb7 {[%emt 0:14:13]} 16. Nb5 {[%emt 0:03:22]} Qc8 {[%emt 0:13:05]} 17. Nxc6 {[%emt 0:01:13]} Bxc6 {[%emt 0:00:07]} 18. Nxa7 {[%emt 0:00:04]} Qb7 {[%emt 0:02:32]} 19. Nxc6 {[%emt 0:00:07]} Ra8 {[%emt 0:03:06]} 20. a4 {[%emt 0:00:33]} b5 {[%emt 0:01:29]} 21. axb5 {[%emt 0:01:26]} Qxb5 {[%emt 0:00:09]} 22. Bf1 {[%emt 0:01:44]} Qb7 {[%emt 0:01:18]} 23. b4 {[%emt 0:01:38]} Rfe8 {[%emt 0:08:18]} 24. Rxe8+ {[%emt 0:00:37]} Rxe8 {[%emt 0:00:06]} 25. b5 {[%emt 0:00:19]} Bc7 {[%emt 0:02:46]} 26. Qa4 {[%emt 0:01:34]} 1-0

[Event "Chinese Championship-B Women 2024"]
[Site "Liaocheng"]
[Date "2024.04.24"]
[Round "8.15"]
[White "Meng, Wuyang"]
[Black "Zhao, Chenyu"]
[Result "0-1"]
[WhiteElo "1652"]
[BlackElo "1909"]
[PlyCount "136"]
[EventDate "2024.04.24"]
[EventType "swiss"]
[EventCountry "CHN"]
[TimeControl "5400+30"]

1. e4 {[%emt 0:00:04]} c5 {[%emt 0:00:03]} 2. Nf3 {[%emt 0:00:05]} d6 {[%emt 0:00:03]} 3. d4 {[%emt 0:00:04]} cxd4 {[%emt 0:00:03]} 4. Nxd4 {[%emt 0:00:04]} Nf6 {[%emt 0:00:04]} 5. Nc3 {[%emt 0:00:05]} Nc6 {[%emt 0:00:04]} 6. Bc4 {[%emt 0:00:27]} e6 {[%emt 0:00:05]} 7. Be3 {[%emt 0:00:08]} Be7 {[%emt 0:01:02]} 8. O-O {[%emt 0:01:09]} a6 {[%emt 0:00:32]} 9. a4 {[%emt 0:01:15]} Qc7 {[%emt 0:01:26]} 10. Bd3 {[%emt 0:03:09]} O-O {[%emt 0:00:37]} 11. Qe2 {[%emt 0:03:27]} Nd7 {[%emt 0:05:45]} 12. f4 {[%emt 0:04:20]} Bf6 {[%emt 0:02:27]} 13. Qf2 {[%emt 0:02:06]} Nb4 {[%emt 0:07:38]} 14. Rfe1 {[%emt 0:05:08]} Nxd3 {[%emt 0:03:59]} 15. cxd3 {[%emt 0:00:08]} Nc5 {[%emt 0:00:05]} 16. Red1 {[%emt 0:03:57]} Bd7 {[%emt 0:13:51]} 17. Qc2 {[%emt 0:03:54]} Rac8 {[%emt 1:01:16]} 18. a5 {[%emt 0:07:13]} b5 {[%emt 0:00:00]} 19. Rdc1 {[%emt 0:05:41]} b4 {[%emt 0:00:00]} 20. Nce2 {[%emt 0:01:19]} Qb7 {[%emt 0:00:00]} 21. Qd1 {[%emt 0:03:39]} e5 {[%emt 0:00:00]} 22. fxe5 {[%emt 0:06:12]} Bxe5 {[%emt 0:00:00]} 23. Bf4 {[%emt 0:03:00]} Bg4 {[%emt 0:00:00]} 24. Bxe5 {[%emt 0:02:15]} dxe5 {[%emt 0:00:00]} 25. Nf3 {[%emt 0:00:13]} Qa7 {[%emt 0:00:00]} 26. Kh1 {[%emt 0:02:26]} Bxf3 {[%emt 0:00:00]} 27. gxf3 {[%emt 0:00:08]} Ne6 {[%emt 0:00:00]} 28. Qg1 {[%emt 0:02:07]} Qd7 {[%emt 0:00:00]} 29. Qe3 {[%emt 0:01:27]} h6 {[%emt 0:00:00]} 30. b3 {[%emt 0:02:10]} Rxc1+ {[%emt 0:00:00]} 31. Rxc1 {[%emt 0:00:22]} Rd8 {[%emt 0:00:00]} 32. Rd1 {[%emt 0:01:03]} Qc7 {[%emt 0:00:00]} 33. Rg1 {[%emt 0:02:52]} Kh8 {[%emt 0:00:00]} 34. Ng3 {[%emt 0:02:51]} Qc5 {[%emt 0:00:00]} 35. Qxc5 {[%emt 0:03:41]} Nxc5 {[%emt 0:00:00]} 36. Nf5 {[%emt 0:00:50]} Ne6 {[%emt 0:00:00]} 37. Rd1 {[%emt 0:00:33]} Rd7 {[%emt 0:00:00]} 38. Ne3 {[%emt 0:02:16]} Nf4 {[%emt 0:00:00]} 39. d4 {[%emt 0:03:58]} Rxd4 {[%emt 0:00:00]} 40. Rxd4 {[%emt 0:01:23]} exd4 {[%emt 0:00:00]} 41. Nc4 {[%emt 0:00:12]} Kg8 {[%emt 0:00:00]} 42. Kg1 {[%emt 0:00:54]} Ne2+ {[%emt 0:00:00]} 43. Kf2 {[%emt 0:01:00]} Nc1 {[%emt 0:00:00]} 44. Nd2 {[%emt 0:00:14]} Kf8 {[%emt 0:00:00]} 45. Ke1 {[%emt 0:01:32]} Ke7 {[%emt 0:00:00]} 46. Kd1 {[%emt 0:00:10]} Nd3 {[%emt 0:00:00]} 47. Kc2 {[%emt 0:02:33]} Nc5 {[%emt 0:00:00]} 48. f4 {[%emt 0:01:59]} Kd7 {[%emt 0:00:37]} 49. Nf3 {[%emt 0:02:47]} d3+ {[%emt 0:01:01]} 50. Kb2 {[%emt 0:00:15]} Kd6 {[%emt 0:03:00]} 51. Ne5 {[%emt 0:01:55]} f6 {[%emt 0:00:31]} 52. Nc4+ {[%emt 0:00:59]} Kc6 {[%emt 0:01:03]} 53. Nd2 {[%emt 0:01:45]} Kb5 {[%emt 0:00:22]} 54. Nc4 {[%emt 0:00:15]} Nxe4 {[%emt 0:00:06]} 55. Kc1 {[%emt 0:00:54]} Nc5 {[%emt 0:00:39]} 56. Kb2 {[%emt 0:00:11]} Nb7 {[%emt 0:00:51]} 57. Kc1 {[%emt 0:00:12]} Nxa5 {[%emt 0:00:17]} 58. Nxa5 {[%emt 0:00:09]} Kxa5 {[%emt 0:00:08]} 59. Kd2 {[%emt 0:00:20]} Kb5 {[%emt 0:00:03]} 60. Kxd3 {[%emt 0:00:06]} a5 {[%emt 0:01:54]} 61. Ke4 {[%emt 0:01:48]} a4 {[%emt 0:00:05]} 62. bxa4+ {[%emt 0:00:25]} Kxa4 {[%emt 0:00:02]} 63. Kf5 {[%emt 0:00:05]} g5 {[%emt 0:00:27]} 64. fxg5 {[%emt 0:00:19]} fxg5 {[%emt 0:00:04]} 65. Kg6 {[%emt 0:00:04]} b3 {[%emt 0:00:08]} 66. Kxh6 {[%emt 0:00:05]} b2 {[%emt 0:00:07]} 67. Kxg5 {[%emt 0:00:05]} b1=Q {[%emt 0:00:06]} 68. h4 {[%emt 0:00:07]} Qh7 {[%emt 0:00:03]} 0-1

[Event "Chinese Championship-B Women 2024"]
[Site "Liaocheng"]
[Date "2024.04.25"]
[Round "9.1"]
[White "Zhao, Yunqing"]
[Black "Wang, Chuqiao"]
[Result "1/2-1/2"]
[ECO "E08"]
[WhiteElo "1965"]
[BlackElo "2302"]
[Annotator "TA"]
[PlyCount "113"]
[EventDate "2024.04.24"]
[EventType "swiss"]
[EventCountry "CHN"]
[SourceTitle "playchess.com"]
[Source "ChessBase"]
[SourceQuality "1"]
[TimeControl "5400+30"]

{[%evp 20,113,8,15,11,12,20,32,36,39,29,2,0,4,0,0,9,-20,-7,-9,-8,-19,-35,-20,-11,-31,-5,-15,-10,-15,-5,-14,-16,-14,-13,-16,-13,-25,-12,-18,0,-8,-8,-10,-7,-22,-8,-13,-5,-8,-9,-31,0,-8,-11,-13,-12,-30,-30,-30,-30,-30,-30,-50,-30,-35,0,-55,-35,-36,-35,-80,-80,-80,-20,-20,-20,-22,-20,-32,-24,-35,-24,-28,0,0,0,0,0,0,0,0,0,0,0,0]} 1. d4 {[%emt 0:00:03]} Nf6 {[%emt 0:00:06]} 2. Nf3 {[%emt 0:00:11]} d5 {[%emt 0:00:04]} 3. c4 {[%emt 0:00:38]} e6 {[%emt 0:00:07]} 4. g3 {[%emt 0:00:16]} Bb4+ {[%emt 0:00:24]} 5. Bd2 {[%emt 0:00:06]} Be7 {[%emt 0:00:06]} 6. Bg2 {[%emt 0:00:05]} O-O {[%emt 0:00:20]} 7. O-O {[%emt 0:00:16]} c6 {[%emt 0:00:06]} 8. Qc2 {[%emt 0:00:13]} b6 {[%emt 0:00:06]} 9. Bf4 {[%emt 0:01:08]} Bb7 {[%emt 0:00:49]} 10. Rd1 {[%emt 0:00:47]} Nbd7 {[%emt 0:01:19]} 11. Ne5 {[%emt 0:02:00]} Nh5 {[%emt 0:14:14]} 12. Bc1 {[%emt 0:04:55]} Rc8 {[%emt 0:04:54]} (12... Nhf6 {simplifies} 13. Nxd7 Qxd7 14. b3 c5) 13. Nc3 {[%emt 0:02:22]} Qc7 {[%emt 0:03:30] White is slightly better.} 14. Nxd7 {[%emt 0:08:20]} Qxd7 {[%emt 0:00:06]} 15. Qa4 {[%emt 0:05:35] cxd5 would now be deadly.} Nf6 {[%emt 0:11:29]} 16. Bf4 {[%emt 0:14:49]} dxc4 {[%emt 0:07:33]} 17. Qxc4 {[%emt 0:00:27]} Nd5 {[%emt 0:00:26]} 18. Nxd5 {[%emt 0:19:28]} cxd5 {[%emt 0:00:43]} 19. Qd3 {[%emt 0:01:40]} Qa4 {[%emt 0:01:06]} 20. Qb3 {[%emt 0:10:57]} Qxb3 {[%emt 0:03:14]} 21. axb3 {[%emt 0:00:07]} a5 {[%emt 0:00:11]} 22. Bd2 {[%emt 0:04:04][%cal Ob3b4]} Ba6 {[%emt 0:10:33]} 23. Bf1 {[%emt 0:06:21]} Bb5 {[%emt 0:05:59]} 24. Rdc1 {[%emt 0:04:46] Repels Rc2} Rfd8 {[%emt 0:04:08]} 25. e3 {[%emt 0:01:12]} Bxf1 {[%emt 0:00:27]} 26. Kxf1 {[%emt 0:00:04]} Kf8 {[%emt 0:00:06]} 27. Ke2 {[%emt 0:00:38]} Ke8 {[%emt 0:00:17]} 28. Kd3 {[%emt 0:00:35]} Kd7 {[%emt 0:00:10]} 29. Rc3 {[%emt 0:01:33]} Rc6 {[%emt 0:00:22]} 30. Rac1 {[%emt 0:00:56]} Rdc8 {[%emt 0:00:11]} 31. f3 {[%emt 0:01:50]} Bd6 {[%emt 0:09:29]} 32. Rf1 {[%emt 0:03:59]} Rg8 {[%emt 0:04:41]} 33. e4 {[%emt 0:02:24]} f6 {[%emt 0:01:06]} 34. exd5 {[%emt 0:01:38]} exd5 {[%emt 0:00:06]} 35. g4 {[%emt 0:00:51]} Rcc8 {[%emt 0:02:51]} 36. Rxc8 {[%emt 0:00:57]} Rxc8 $11 {[%emt 0:00:18][%mdl 4096] Endgame. KRB-KRB} 37. h3 {[%emt 0:01:39]} Re8 {[%emt 0:00:25]} 38. Re1 {[%emt 0:00:52]} Rxe1 {[%emt 0:01:41]} 39. Bxe1 {[%emt 0:00:04] KB-KB} Kc6 {[%emt 0:01:25]} 40. Bd2 {[%emt 0:01:01]} g6 {[%emt 0:01:30]} 41. Ke2 {[%emt 0:00:37]} Kb5 {[%emt 0:00:58]} 42. Kd3 {[%emt 0:00:21]} Kc6 {[%emt 0:03:48]} 43. Ke2 $1 {[%emt 0:00:15]} Kd7 {[%emt 0:00:12]} 44. Kf2 {[%emt 0:00:56]} Ke6 {[%emt 0:01:41]} 45. f4 {[%emt 0:00:33]} Bf8 {[%emt 0:02:03]} 46. b4 {[%emt 0:00:25]} Bxb4 {[%emt 0:05:53]} ({Black should try} 46... axb4 $17 47. b3 Be7) 47. Bxb4 {[%emt 0:00:06]} axb4 $17 {[%emt 0:00:01] KP-KP} 48. b3 {[%emt 0:00:15]} h6 {[%emt 0:02:20]} 49. h4 {[%emt 0:01:12]} Kf7 {[%emt 0:00:55]} (49... f5 $5 50. g5 $8 h5 $11) 50. Kg3 {[%emt 0:00:28]} f5 {[%emt 0:00:27] [#] ( -> ...fxg4)} 51. gxf5 {[%emt 0:00:30]} Kf6 {[%emt 0:00:31]} 52. fxg6 {[%emt 0:00:24] The position is equal.} Kxg6 {[%emt 0:00:01] ...Kf5 is the strong threat.} 53. Kg4 {[%emt 0:00:21] Threatening mate with f5+.} h5+ {[%emt 0:00:03]} 54. Kg3 $1 {[%emt 0:00:08]} Kf6 {[%emt 0:00:07]} 55. Kf2 {[%emt 0:00:07]} Ke6 {[%emt 0:00:08]} (55... Kf5 $5 56. Kf3 $8 Kf6 $11) 56. Ke2 {[%emt 0:00:07]} Kf5 {[%emt 0:00:29]} 57. Kf3 {[%emt 0:00:05] Weighted Error Value: White=0.06 (flawless) /Black=0.09 (flawless) .  Mistake:       	---       	Black=1      Inaccurate:     	White=3     	Black=3      OK:         	White=13    	Black=13     Best:        	White=1     	Black=2      Strong:       	White=2     	---} 1/2-1/2